[Event "Titled Tuesday Blitz June 20 Early 2023"]
[White "Hakobyan, Aram"]
[Black "Gordievsky, Dmitry"]
[WhiteFideId "13306677"]
[BlackFideId "24112798"]
[WhiteElo "2584"]
[BlackElo "2546"]
[Result "1-0"]
[Round "6"]
[TimeControl "180+2"]
[Date "2023.06.20"]
[WhiteClock "0:00:19"]
[BlackClock "0:00:00"]
[Board "7"]

1. d4 {[%clk 0:03:00]}  Nf6 {[%clk 0:03:00]} 2. c4 {[%clk 0:03:01]}  g6 {[%clk 0:03:00]} 3. Nc3 {[%clk 0:03:00]}  Bg7 {[%clk 0:03:01]} 4. e4 {[%clk 0:03:00]}  d6 {[%clk 0:03:01]} 5. Be2 {[%clk 0:03:01]}  O-O {[%clk 0:03:01]} 6. Nf3 {[%clk 0:03:02]}  e5 {[%clk 0:02:58]} 7. O-O {[%clk 0:03:02]}  Bg4 {[%clk 0:02:58]} 8. dxe5 {[%clk 0:03:00]}  dxe5 {[%clk 0:02:40]} 9. Nxe5 {[%clk 0:02:43]}  Bxe2 {[%clk 0:02:26]} 10. Qxe2 {[%clk 0:02:39]}  Re8 {[%clk 0:02:21]} 11. Nf3 {[%clk 0:02:35]}  c6 {[%clk 0:01:56]} 12. Bg5 {[%clk 0:02:32]}  Qb6 {[%clk 0:01:49]} 13. Rad1 {[%clk 0:02:15]}  Nbd7 {[%clk 0:01:40]} 14. e5 {[%clk 0:02:14]}  Qc7 {[%clk 0:01:30]} 15. Rfe1 {[%clk 0:02:13]}  Ng4 {[%clk 0:01:27]} 16. Ne4 {[%clk 0:01:50]}  Ngxe5 {[%clk 0:01:03]} 17. Nxe5 {[%clk 0:01:40]}  Bxe5 {[%clk 0:00:59]} 18. Qd2 {[%clk 0:01:08]}  Nf8 {[%clk 0:00:47]} 19. Nf6+ {[%clk 0:01:03]}  Bxf6 {[%clk 0:00:45]} 20. Bxf6 {[%clk 0:01:04]}  Re6 {[%clk 0:00:28]} 21. Rxe6 {[%clk 0:01:01]}  Nxe6 {[%clk 0:00:28]} 22. g3 {[%clk 0:00:57]}  Qc8 {[%clk 0:00:18]} 23. Qe3 {[%clk 0:00:49]}  Qe8 {[%clk 0:00:15]} 24. Rd6 {[%clk 0:00:45]}  b6 {[%clk 0:00:14]} 25. Qf3 {[%clk 0:00:40]}  Rc8 {[%clk 0:00:13]} 26. h4 {[%clk 0:00:37]}  h5 {[%clk 0:00:12]} 27. Kg2 {[%clk 0:00:37]}  c5 {[%clk 0:00:12]} 28. b3 {[%clk 0:00:36]}  Qf8 {[%clk 0:00:12]} 29. Be5 {[%clk 0:00:29]}  Rd8 {[%clk 0:00:09]} 30. Qf6 {[%clk 0:00:28]}  Kh7 {[%clk 0:00:09]} 31. Rxd8 {[%clk 0:00:19]}  Qxd8 {[%clk 0:00:00]} 32. Qxf7+ {[%clk 0:00:19]} 1-0


[Site "https://www.chess.com"]

[Event "Titled Tuesday Blitz June 20 Early 2023"]
[White "Tabatabaei, M. Amin"]
[Black "Pap, Gyula"]
[WhiteFideId "12521213"]
[BlackFideId "725323"]
[WhiteElo "2575"]
[BlackElo "2519"]
[Result "1-0"]
[Round "6"]
[TimeControl "180+2"]
[Date "2023.06.20"]
[WhiteClock "0:00:04"]
[BlackClock "0:00:00"]
[Board "8"]

1. d4 {[%clk 0:03:00]}  d5 {[%clk 0:02:59]} 2. Nf3 {[%clk 0:03:01]}  Nf6 {[%clk 0:03:00]} 3. c3 {[%clk 0:03:01]}  c6 {[%clk 0:02:38]} 4. Qc2 {[%clk 0:03:01]}  g6 {[%clk 0:02:23]} 5. Bf4 {[%clk 0:03:00]}  Bg7 {[%clk 0:02:24]} 6. h3 {[%clk 0:03:00]}  O-O {[%clk 0:02:24]} 7. e3 {[%clk 0:03:00]}  Bf5 {[%clk 0:02:21]} 8. Qb3 {[%clk 0:03:00]}  Qb6 {[%clk 0:02:22]} 9. Nbd2 {[%clk 0:03:01]}  Nbd7 {[%clk 0:02:21]} 10. Be2 {[%clk 0:03:01]}  Ne4 {[%clk 0:02:19]} 11. g4 {[%clk 0:02:10]}  Nxd2 {[%clk 0:02:19]} 12. Nxd2 {[%clk 0:02:11]}  Be6 {[%clk 0:02:10]} 13. a4 {[%clk 0:02:09]}  Rfe8 {[%clk 0:01:46]} 14. a5 {[%clk 0:02:08]}  Qxb3 {[%clk 0:01:45]} 15. Nxb3 {[%clk 0:02:09]}  a6 {[%clk 0:01:46]} 16. h4 {[%clk 0:02:09]}  f6 {[%clk 0:01:38]} 17. Bg3 {[%clk 0:02:07]}  Bf7 {[%clk 0:01:38]} 18. Kd2 {[%clk 0:01:56]}  e5 {[%clk 0:01:35]} 19. f4 {[%clk 0:01:55]}  e4 {[%clk 0:01:23]} 20. f5 {[%clk 0:01:49]}  gxf5 {[%clk 0:01:20]} 21. gxf5 {[%clk 0:01:50]}  Bh6 {[%clk 0:01:21]} 22. Ra4 {[%clk 0:01:41]}  Bf8 {[%clk 0:01:21]} 23. Bf4 {[%clk 0:01:40]}  Kh8 {[%clk 0:01:21]} 24. h5 {[%clk 0:01:39]}  Be7 {[%clk 0:01:19]} 25. h6 {[%clk 0:01:32]}  Rg8 {[%clk 0:01:19]} 26. Raa1 {[%clk 0:01:29]}  Rg2 {[%clk 0:01:17]} 27. Rag1 {[%clk 0:01:28]}  Rag8 {[%clk 0:01:18]} 28. Rxg2 {[%clk 0:01:28]}  Rxg2 {[%clk 0:01:18]} 29. Ke1 {[%clk 0:01:29]}  c5 {[%clk 0:00:41]} 30. Kf1 {[%clk 0:01:30]}  Rg8 {[%clk 0:00:42]} 31. Kf2 {[%clk 0:01:30]}  cxd4 {[%clk 0:00:33]} 32. exd4 {[%clk 0:01:25]}  Rc8 {[%clk 0:00:30]} 33. Nd2 {[%clk 0:01:24]}  Nb8 {[%clk 0:00:28]} 34. Ra1 {[%clk 0:01:22]}  Nc6 {[%clk 0:00:28]} 35. Nb3 {[%clk 0:01:15]}  Be8 {[%clk 0:00:25]} 36. Ke3 {[%clk 0:01:03]}  Bd7 {[%clk 0:00:24]} 37. Bg4 {[%clk 0:01:03]}  Rg8 {[%clk 0:00:24]} 38. Bh3 {[%clk 0:01:04]}  Bf8 {[%clk 0:00:21]} 39. Nc5 {[%clk 0:00:51]}  Bxc5 {[%clk 0:00:20]} 40. dxc5 {[%clk 0:00:52]}  Ne7 {[%clk 0:00:20]} 41. Bd6 {[%clk 0:00:33]}  Bxf5 {[%clk 0:00:20]} 42. Bxe7 {[%clk 0:00:30]}  Rg3+ {[%clk 0:00:20]} 43. Kd2 {[%clk 0:00:17]}  e3+ {[%clk 0:00:12]} 44. Ke2 {[%clk 0:00:16]}  Bxh3 {[%clk 0:00:13]} 45. Bxf6+ {[%clk 0:00:14]}  Kg8 {[%clk 0:00:13]} 46. Be5 {[%clk 0:00:13]}  Bg4+ {[%clk 0:00:14]} 47. Kd3 {[%clk 0:00:14]}  Bf5+ {[%clk 0:00:07]} 48. Kd4 {[%clk 0:00:08]}  Rg4+ {[%clk 0:00:06]} 49. Kxd5 {[%clk 0:00:09]}  e2 {[%clk 0:00:06]} 50. Re1 {[%clk 0:00:09]}  Be4+ {[%clk 0:00:02]} 51. Kd6 {[%clk 0:00:08]}  Bf3 {[%clk 0:00:02]} 52. c6 {[%clk 0:00:04]}  bxc6 {[%clk 0:00:03]} 53. Kc7 {[%clk 0:00:04]}  Kf7 {[%clk 0:00:03]} 54. Kb6 {[%clk 0:00:05]}  Ke6 {[%clk 0:00:03]} 55. Bd4 {[%clk 0:00:05]}  Kd5 {[%clk 0:00:04]} 56. b4 {[%clk 0:00:04]}  Rxd4 {[%clk 0:00:03]} 57. cxd4 {[%clk 0:00:04]}  Kxd4 {[%clk 0:00:04]} 58. Kxa6 {[%clk 0:00:04]}  Kc4 {[%clk 0:00:04]} 59. Kb6 {[%clk 0:00:03]}  Kxb4 {[%clk 0:00:05]} 60. a6 {[%clk 0:00:04]}  c5 {[%clk 0:00:05]} 61. a7 {[%clk 0:00:04]}  c4 {[%clk 0:00:06]} 62. Rxe2 {[%clk 0:00:05]}  c3 {[%clk 0:00:03]} 63. Rf2 {[%clk 0:00:05]}  Bh1 {[%clk 0:00:03]} 64. Rh2 {[%clk 0:00:03]}  Bf3 {[%clk 0:00:02]} 65. Rh3 {[%clk 0:00:02]}  Bg2 {[%clk 0:00:03]} 66. Rh2 {[%clk 0:00:02]}  Bf3 {[%clk 0:00:03]} 67. Rh4+ {[%clk 0:00:02]}  Kb3 {[%clk 0:00:03]} 68. Rh3 {[%clk 0:00:03]}  Bg2 {[%clk 0:00:03]} 69. Rg3 {[%clk 0:00:04]}  Be4 {[%clk 0:00:04]} 70. Re3 {[%clk 0:00:03]}  Bg2 {[%clk 0:00:04]} 71. Rg3 {[%clk 0:00:03]}  Be4 {[%clk 0:00:03]} 72. Kc5 {[%clk 0:00:04]}  Kb2 {[%clk 0:00:03]} 73. Kd4 {[%clk 0:00:05]}  c2 {[%clk 0:00:03]} 74. Kxe4 {[%clk 0:00:04]}  c1=Q {[%clk 0:00:03]} 75. a8=Q {[%clk 0:00:04]}  Qh1+ {[%clk 0:00:01]} 76. Rf3 {[%clk 0:00:04]}  Qh4+ {[%clk 0:00:01]} 77. Ke3 {[%clk 0:00:05]}  Qxh6+ {[%clk 0:00:00]} 78. Ke2 {[%clk 0:00:04]} 1-0


[Site "https://www.chess.com"]

[Event "Titled Tuesday Blitz June 20 Early 2023"]
[White "Lorparizangeneh, Shahin"]
[Black "Nihal Sarin"]
[WhiteFideId "12521604"]
[BlackFideId "25092340"]
[WhiteElo "2526"]
[BlackElo "2689"]
[Result "0-1"]
[Round "6"]
[TimeControl "180+2"]
[Date "2023.06.20"]
[WhiteClock "0:00:13"]
[BlackClock "0:01:24"]
[Board "10"]

1. e4 {[%clk 0:03:00]}  c5 {[%clk 0:02:55]} 2. Nf3 {[%clk 0:03:00]}  Nc6 {[%clk 0:02:55]} 3. Bb5 {[%clk 0:02:58]}  e6 {[%clk 0:02:55]} 4. Bxc6 {[%clk 0:02:55]}  bxc6 {[%clk 0:02:56]} 5. d3 {[%clk 0:02:56]}  Ne7 {[%clk 0:02:56]} 6. Nbd2 {[%clk 0:02:56]}  d6 {[%clk 0:02:51]} 7. e5 {[%clk 0:02:53]}  Ng6 {[%clk 0:02:51]} 8. exd6 {[%clk 0:02:32]}  Bxd6 {[%clk 0:02:52]} 9. O-O {[%clk 0:02:31]}  O-O {[%clk 0:02:48]} 10. Ne4 {[%clk 0:02:27]}  Be7 {[%clk 0:02:45]} 11. Re1 {[%clk 0:02:14]}  e5 {[%clk 0:02:44]} 12. b3 {[%clk 0:02:03]}  f6 {[%clk 0:02:34]} 13. Ba3 {[%clk 0:01:55]}  Qa5 {[%clk 0:02:34]} 14. Qc1 {[%clk 0:01:52]}  Be6 {[%clk 0:02:32]} 15. Nfd2 {[%clk 0:01:31]}  Rad8 {[%clk 0:02:16]} 16. Bb2 {[%clk 0:01:27]}  Qc7 {[%clk 0:02:12]} 17. Nc4 {[%clk 0:01:24]}  Nf4 {[%clk 0:02:08]} 18. Qe3 {[%clk 0:01:17]}  Bd5 {[%clk 0:02:05]} 19. f3 {[%clk 0:01:16]}  Ne6 {[%clk 0:02:04]} 20. Ba3 {[%clk 0:01:06]}  Bxc4 {[%clk 0:01:53]} 21. dxc4 {[%clk 0:01:01]}  Qa5 {[%clk 0:01:53]} 22. Bb2 {[%clk 0:01:00]}  Nd4 {[%clk 0:01:51]} 23. Qf2 {[%clk 0:00:59]}  Rd7 {[%clk 0:01:52]} 24. Bc3 {[%clk 0:00:57]}  Qc7 {[%clk 0:01:51]} 25. Ng3 {[%clk 0:00:55]}  Rfd8 {[%clk 0:01:51]} 26. a4 {[%clk 0:00:52]}  g6 {[%clk 0:01:50]} 27. Ne4 {[%clk 0:00:52]}  f5 {[%clk 0:01:50]} 28. Ng3 {[%clk 0:00:51]}  Bh4 {[%clk 0:01:51]} 29. Qf1 {[%clk 0:00:46]}  Nxc2 {[%clk 0:01:48]} 30. Bxe5 {[%clk 0:00:46]}  Qb7 {[%clk 0:01:45]} 31. Qf2 {[%clk 0:00:36]}  Nxa1 {[%clk 0:01:38]} 32. Bxa1 {[%clk 0:00:33]}  Qxb3 {[%clk 0:01:38]} 33. Qxc5 {[%clk 0:00:33]}  Rd1 {[%clk 0:01:31]} 34. Rf1 {[%clk 0:00:21]}  Bxg3 {[%clk 0:01:28]} 35. hxg3 {[%clk 0:00:16]}  Rxf1+ {[%clk 0:01:28]} 36. Kh2 {[%clk 0:00:13]}  Qd1 {[%clk 0:01:24]} 0-1


[Site "https://www.chess.com"]

[Event "Titled Tuesday Blitz June 20 Early 2023"]
[White "Kramnik, Vladimir"]
[Black "Sethuraman, S.P."]
[WhiteFideId "4101588"]
[BlackFideId "5021596"]
[WhiteElo "2703"]
[BlackElo "2543"]
[Result "1/2-1/2"]
[Round "6"]
[TimeControl "180+2"]
[Date "2023.06.20"]
[WhiteClock "0:00:06"]
[BlackClock "0:00:31"]
[Board "11"]

1. e4 {[%clk 0:03:00]}  e6 {[%clk 0:02:53]} 2. d4 {[%clk 0:02:59]}  d5 {[%clk 0:02:54]} 3. exd5 {[%clk 0:02:59]}  exd5 {[%clk 0:02:53]} 4. Nf3 {[%clk 0:02:59]}  Nf6 {[%clk 0:02:53]} 5. Bd3 {[%clk 0:02:59]}  Bd6 {[%clk 0:02:53]} 6. O-O {[%clk 0:03:00]}  O-O {[%clk 0:02:52]} 7. Bg5 {[%clk 0:03:01]}  Bg4 {[%clk 0:02:47]} 8. Nbd2 {[%clk 0:03:01]}  Nbd7 {[%clk 0:02:46]} 9. c4 {[%clk 0:03:01]}  c6 {[%clk 0:02:36]} 10. c5 {[%clk 0:02:57]}  Bc7 {[%clk 0:02:32]} 11. Qc2 {[%clk 0:02:57]}  h6 {[%clk 0:02:30]} 12. Bh4 {[%clk 0:02:56]}  Re8 {[%clk 0:02:30]} 13. b4 {[%clk 0:02:49]}  Bf4 {[%clk 0:02:24]} 14. a4 {[%clk 0:02:26]}  Qc7 {[%clk 0:02:23]} 15. b5 {[%clk 0:02:18]}  Ne4 {[%clk 0:02:08]} 16. Bg3 {[%clk 0:01:56]}  Nxd2 {[%clk 0:01:39]} 17. Qxd2 {[%clk 0:01:43]}  Bxd2 {[%clk 0:01:34]} 18. Bxc7 {[%clk 0:01:44]}  Bxf3 {[%clk 0:01:34]} 19. gxf3 {[%clk 0:01:43]}  Bc3 {[%clk 0:01:34]} 20. Rad1 {[%clk 0:01:39]}  Bxd4 {[%clk 0:00:54]} 21. Bf5 {[%clk 0:01:39]}  Bxc5 {[%clk 0:00:52]} 22. bxc6 {[%clk 0:01:27]}  bxc6 {[%clk 0:00:52]} 23. Bxd7 {[%clk 0:01:16]}  Re7 {[%clk 0:00:52]} 24. Bxc6 {[%clk 0:01:11]}  Rc8 {[%clk 0:00:52]} 25. Rxd5 {[%clk 0:01:01]}  Rexc7 {[%clk 0:00:48]} 26. Bd7 {[%clk 0:00:56]}  Rd8 {[%clk 0:00:44]} 27. Rfd1 {[%clk 0:00:57]}  g6 {[%clk 0:00:42]} 28. Kg2 {[%clk 0:00:37]}  Bb6 {[%clk 0:00:39]} 29. R1d2 {[%clk 0:00:33]}  Kg7 {[%clk 0:00:35]} 30. h4 {[%clk 0:00:21]}  Rc5 {[%clk 0:00:34]} 31. Rxc5 {[%clk 0:00:16]}  Bxc5 {[%clk 0:00:35]} 32. Rd5 {[%clk 0:00:14]}  Bb6 {[%clk 0:00:34]} 33. f4 {[%clk 0:00:13]}  Kf8 {[%clk 0:00:31]} 34. Kg3 {[%clk 0:00:06]}  Ke7 {[%clk 0:00:31]} 35. Bc6 {[%clk 0:00:06]}  Rxd5 {[%clk 0:00:30]} 36. Bxd5 {[%clk 0:00:06]}  Kf6 {[%clk 0:00:30]} 37. Bc4 {[%clk 0:00:06]}  h5 {[%clk 0:00:30]} 38. Bd5 {[%clk 0:00:06]}  Bc5 {[%clk 0:00:30]} 39. Bc4 {[%clk 0:00:06]}  Bd4 {[%clk 0:00:30]} 40. Bd5 {[%clk 0:00:05]}  Bc5 {[%clk 0:00:31]} 41. Bc4 {[%clk 0:00:05]}  Bd4 {[%clk 0:00:31]} 42. Bd5 {[%clk 0:00:06]}  Bc5 {[%clk 0:00:31]} 1/2-1/2


[Site "https://www.chess.com"]

[Event "Titled Tuesday Blitz June 20 Early 2023"]
[White "Lazavik, Denis"]
[Black "Yuan, Qingyu"]
[WhiteFideId "13515110"]
[BlackFideId "8609772"]
[WhiteElo "2560"]
[BlackElo "2359"]
[Result "1-0"]
[Round "6"]
[TimeControl "180+2"]
[Date "2023.06.20"]
[WhiteClock "0:00:11"]
[BlackClock "0:00:02"]
[Board "13"]

1. d4 {[%clk 0:02:57]}  Nf6 {[%clk 0:03:00]} 2. c4 {[%clk 0:02:57]}  e6 {[%clk 0:03:00]} 3. Nf3 {[%clk 0:02:58]}  d5 {[%clk 0:03:00]} 4. Nc3 {[%clk 0:02:58]}  c5 {[%clk 0:03:01]} 5. cxd5 {[%clk 0:02:58]}  Nxd5 {[%clk 0:03:02]} 6. e3 {[%clk 0:02:59]}  Nc6 {[%clk 0:03:01]} 7. Bd3 {[%clk 0:02:57]}  Be7 {[%clk 0:02:53]} 8. O-O {[%clk 0:02:57]}  O-O {[%clk 0:02:46]} 9. a3 {[%clk 0:02:57]}  cxd4 {[%clk 0:02:46]} 10. exd4 {[%clk 0:02:56]}  Bf6 {[%clk 0:02:45]} 11. Bc2 {[%clk 0:02:52]}  Nce7 {[%clk 0:02:33]} 12. Re1 {[%clk 0:02:33]}  b6 {[%clk 0:02:31]} 13. Ne5 {[%clk 0:01:49]}  Bb7 {[%clk 0:02:28]} 14. Ne4 {[%clk 0:01:48]}  Ng6 {[%clk 0:02:14]} 15. Qh5 {[%clk 0:01:42]}  Rc8 {[%clk 0:02:04]} 16. Ng5 {[%clk 0:00:42]}  Bxg5 {[%clk 0:01:11]} 17. Bxg5 {[%clk 0:00:40]}  Nf6 {[%clk 0:01:10]} 18. Bxf6 {[%clk 0:00:39]}  Qxf6 {[%clk 0:00:52]} 19. Nd7 {[%clk 0:00:16]}  Qf4 {[%clk 0:00:39]} 20. g3 {[%clk 0:00:13]}  Qd6 {[%clk 0:00:17]} 21. Nxf8 {[%clk 0:00:12]}  Rxc2 {[%clk 0:00:15]} 22. Nxg6 {[%clk 0:00:12]}  hxg6 {[%clk 0:00:14]} 23. Qe5 {[%clk 0:00:10]}  Qc6 {[%clk 0:00:09]} 24. d5 {[%clk 0:00:08]}  Qc5 {[%clk 0:00:06]} 25. Rf1 {[%clk 0:00:07]}  Bxd5 {[%clk 0:00:05]} 26. Qf4 {[%clk 0:00:06]}  a5 {[%clk 0:00:05]} 27. Rac1 {[%clk 0:00:06]}  Qc6 {[%clk 0:00:03]} 28. Rxc2 {[%clk 0:00:07]}  Qxc2 {[%clk 0:00:03]} 29. Rc1 {[%clk 0:00:07]}  Qe4 {[%clk 0:00:02]} 30. Qxe4 {[%clk 0:00:06]}  Bxe4 {[%clk 0:00:02]} 31. Rc8+ {[%clk 0:00:07]}  Kh7 {[%clk 0:00:03]} 32. Rb8 {[%clk 0:00:08]}  a4 {[%clk 0:00:02]} 33. Rxb6 {[%clk 0:00:08]}  Bc2 {[%clk 0:00:03]} 34. Rc6 {[%clk 0:00:07]}  Bb3 {[%clk 0:00:03]} 35. Rc3 {[%clk 0:00:08]}  Bd1 {[%clk 0:00:02]} 36. Rd3 {[%clk 0:00:08]}  Bc2 {[%clk 0:00:02]} 37. Rc3 {[%clk 0:00:08]}  Bd1 {[%clk 0:00:02]} 38. Kf1 {[%clk 0:00:09]}  g5 {[%clk 0:00:03]} 39. Ke1 {[%clk 0:00:09]}  Bb3 {[%clk 0:00:02]} 40. Rxb3 {[%clk 0:00:09]}  axb3 {[%clk 0:00:03]} 41. a4 {[%clk 0:00:10]}  Kg8 {[%clk 0:00:03]} 42. a5 {[%clk 0:00:10]}  Kf8 {[%clk 0:00:04]} 43. a6 {[%clk 0:00:11]}  Ke7 {[%clk 0:00:02]} 44. a7 {[%clk 0:00:11]} 1-0


[Site "https://www.chess.com"]

[Event "Titled Tuesday Blitz June 20 Early 2023"]
[White "Rohith Krishna S"]
[Black "Bluebaum, Matthias"]
[WhiteFideId "46617051"]
[BlackFideId "24651516"]
[WhiteElo "2270"]
[BlackElo "2639"]
[Result "0-1"]
[Round "6"]
[TimeControl "180+2"]
[Date "2023.06.20"]
[WhiteClock "0:00:45"]
[BlackClock "0:00:18"]
[Board "14"]

1. Nf3 {[%clk 0:03:00]}  d5 {[%clk 0:03:00]} 2. g3 {[%clk 0:02:59]}  e6 {[%clk 0:03:00]} 3. Bg2 {[%clk 0:02:59]}  Nf6 {[%clk 0:03:01]} 4. O-O {[%clk 0:02:59]}  Bd6 {[%clk 0:03:02]} 5. d3 {[%clk 0:02:59]}  O-O {[%clk 0:03:02]} 6. Nc3 {[%clk 0:02:57]}  c5 {[%clk 0:02:59]} 7. e4 {[%clk 0:02:57]}  d4 {[%clk 0:02:59]} 8. Ne2 {[%clk 0:02:57]}  Nc6 {[%clk 0:02:59]} 9. a4 {[%clk 0:02:57]}  e5 {[%clk 0:02:59]} 10. Nd2 {[%clk 0:02:57]}  Be6 {[%clk 0:02:57]} 11. b3 {[%clk 0:02:57]}  a6 {[%clk 0:02:54]} 12. h3 {[%clk 0:02:53]}  b5 {[%clk 0:02:50]} 13. f4 {[%clk 0:02:52]}  exf4 {[%clk 0:02:31]} 14. gxf4 {[%clk 0:02:51]}  Bc7 {[%clk 0:02:29]} 15. Nf3 {[%clk 0:02:46]}  c4 {[%clk 0:02:17]} 16. f5 {[%clk 0:02:35]}  Bd7 {[%clk 0:02:13]} 17. Bf4 {[%clk 0:02:35]}  Qb8 {[%clk 0:01:56]} 18. axb5 {[%clk 0:02:26]}  Bxf4 {[%clk 0:01:51]} 19. Nxf4 {[%clk 0:02:25]}  Qxf4 {[%clk 0:01:35]} 20. bxc6 {[%clk 0:02:24]}  Bxc6 {[%clk 0:01:36]} 21. bxc4 {[%clk 0:02:23]}  Nh5 {[%clk 0:01:28]} 22. Qd2 {[%clk 0:02:20]}  Qd6 {[%clk 0:01:21]} 23. Qg5 {[%clk 0:02:07]}  g6 {[%clk 0:01:18]} 24. Rf2 {[%clk 0:02:00]}  a5 {[%clk 0:01:13]} 25. e5 {[%clk 0:01:57]}  Qc5 {[%clk 0:01:08]} 26. f6 {[%clk 0:01:53]}  Rfe8 {[%clk 0:01:06]} 27. Re1 {[%clk 0:01:51]}  Rab8 {[%clk 0:00:45]} 28. Rfe2 {[%clk 0:01:49]}  Qf8 {[%clk 0:00:32]} 29. Nxd4 {[%clk 0:01:45]}  Qc5 {[%clk 0:00:28]} 30. c3 {[%clk 0:01:34]}  Bxg2 {[%clk 0:00:28]} 31. Kxg2 {[%clk 0:01:35]}  a4 {[%clk 0:00:27]} 32. h4 {[%clk 0:01:36]}  a3 {[%clk 0:00:23]} 33. Kh2 {[%clk 0:01:26]}  Rb2 {[%clk 0:00:22]} 34. Nf5 {[%clk 0:01:05]}  Qxe5+ {[%clk 0:00:21]} 35. Ng3 {[%clk 0:00:56]}  Rxe2+ {[%clk 0:00:18]} 36. Rxe2 {[%clk 0:00:45]}  Qxg3+ {[%clk 0:00:18]} 0-1


[Site "https://www.chess.com"]

[Event "Titled Tuesday Blitz June 20 Early 2023"]
[White "Priasmoro, Novendra"]
[Black "Paravyan, David"]
[WhiteFideId "7105029"]
[BlackFideId "4194985"]
[WhiteElo "2412"]
[BlackElo "2563"]
[Result "0-1"]
[Round "6"]
[TimeControl "180+2"]
[Date "2023.06.20"]
[WhiteClock "0:01:03"]
[BlackClock "0:01:52"]
[Board "15"]

1. e4 {[%clk 0:03:00]}  e5 {[%clk 0:03:00]} 2. Nf3 {[%clk 0:03:01]}  Nf6 {[%clk 0:03:00]} 3. Nxe5 {[%clk 0:03:00]}  d6 {[%clk 0:03:01]} 4. Nf3 {[%clk 0:03:01]}  Nxe4 {[%clk 0:03:01]} 5. d4 {[%clk 0:03:02]}  d5 {[%clk 0:03:02]} 6. Bd3 {[%clk 0:03:01]}  Bd6 {[%clk 0:03:03]} 7. O-O {[%clk 0:03:00]}  O-O {[%clk 0:03:03]} 8. c4 {[%clk 0:03:01]}  c6 {[%clk 0:03:04]} 9. Re1 {[%clk 0:03:01]}  Bf5 {[%clk 0:03:03]} 10. Qb3 {[%clk 0:02:58]}  Qd7 {[%clk 0:03:04]} 11. Nc3 {[%clk 0:02:53]}  Nxc3 {[%clk 0:03:03]} 12. Bxf5 {[%clk 0:02:52]}  Qxf5 {[%clk 0:03:04]} 13. bxc3 {[%clk 0:02:50]}  b6 {[%clk 0:03:04]} 14. cxd5 {[%clk 0:02:48]}  cxd5 {[%clk 0:03:05]} 15. Ba3 {[%clk 0:02:46]}  Bxa3 {[%clk 0:03:03]} 16. Qxa3 {[%clk 0:02:47]}  Nc6 {[%clk 0:03:04]} 17. Ne5 {[%clk 0:02:43]}  Rfc8 {[%clk 0:03:03]} 18. Qd6 {[%clk 0:02:40]}  Nxe5 {[%clk 0:02:58]} 19. Rxe5 {[%clk 0:02:41]}  Qc2 {[%clk 0:02:50]} 20. Qxd5 {[%clk 0:02:40]}  Qxc3 {[%clk 0:02:50]} 21. Rae1 {[%clk 0:02:40]}  h6 {[%clk 0:02:40]} 22. Re7 {[%clk 0:02:40]}  Qc4 {[%clk 0:02:39]} 23. Qf5 {[%clk 0:02:29]}  Rd8 {[%clk 0:02:15]} 24. d5 {[%clk 0:02:24]}  Qxd5 {[%clk 0:02:11]} 25. Qxd5 {[%clk 0:01:23]}  Rxd5 {[%clk 0:02:10]} 26. Re8+ {[%clk 0:01:24]}  Rxe8 {[%clk 0:02:10]} 27. Rxe8+ {[%clk 0:01:25]}  Kh7 {[%clk 0:02:11]} 28. g3 {[%clk 0:01:26]}  Ra5 {[%clk 0:02:10]} 29. Re2 {[%clk 0:01:26]}  Ra3 {[%clk 0:02:10]} 30. Kg2 {[%clk 0:01:26]}  b5 {[%clk 0:02:09]} 31. h4 {[%clk 0:01:26]}  g6 {[%clk 0:02:01]} 32. Kf1 {[%clk 0:01:20]}  h5 {[%clk 0:02:00]} 33. Ke1 {[%clk 0:01:20]}  b4 {[%clk 0:02:01]} 34. Kd1 {[%clk 0:01:20]}  a5 {[%clk 0:02:01]} 35. Kc1 {[%clk 0:01:20]}  Kg7 {[%clk 0:02:02]} 36. Kb2 {[%clk 0:01:21]}  Rf3 {[%clk 0:02:01]} 37. Kc1 {[%clk 0:01:19]}  Kf6 {[%clk 0:02:01]} 38. Kd1 {[%clk 0:01:19]}  Kf5 {[%clk 0:02:00]} 39. Ke1 {[%clk 0:01:19]}  Rc3 {[%clk 0:01:58]} 40. Rd2 {[%clk 0:01:17]}  Ke4 {[%clk 0:01:58]} 41. Ke2 {[%clk 0:01:17]}  Ra3 {[%clk 0:01:58]} 42. Rc2 {[%clk 0:01:16]}  Kd4 {[%clk 0:01:58]} 43. Kd2 {[%clk 0:01:16]}  Rc3 {[%clk 0:01:56]} 44. Rb2 {[%clk 0:01:14]}  Kc4 {[%clk 0:01:55]} 45. Ke2 {[%clk 0:01:14]}  a4 {[%clk 0:01:55]} 46. Rd2 {[%clk 0:01:14]}  b3 {[%clk 0:01:54]} 47. axb3+ {[%clk 0:01:15]}  axb3 {[%clk 0:01:53]} 48. Rd7 {[%clk 0:01:14]}  b2 {[%clk 0:01:52]} 49. Rc7+ {[%clk 0:01:10]}  Kb3 {[%clk 0:01:52]} 50. Rxf7 {[%clk 0:01:03]}  Rc4 {[%clk 0:01:52]} 0-1


[Site "https://www.chess.com"]

[Event "Titled Tuesday Blitz June 20 Early 2023"]
[White "Lavrik, Dmitry"]
[Black "Terry, Renato"]
[WhiteFideId "24113190"]
[BlackFideId "3803457"]
[WhiteElo "2345"]
[BlackElo "2575"]
[Result "1-0"]
[Round "6"]
[TimeControl "180+2"]
[Date "2023.06.20"]
[WhiteClock "0:00:12"]
[BlackClock "0:00:00"]
[Board "19"]

1. c4 {[%clk 0:02:26]}  e5 {[%clk 0:02:59]} 2. g3 {[%clk 0:02:26]}  Nc6 {[%clk 0:02:56]} 3. Bg2 {[%clk 0:02:26]}  g6 {[%clk 0:02:57]} 4. Nc3 {[%clk 0:02:23]}  Bg7 {[%clk 0:02:57]} 5. d3 {[%clk 0:02:22]}  d6 {[%clk 0:02:57]} 6. Nf3 {[%clk 0:02:23]}  h6 {[%clk 0:02:55]} 7. Rb1 {[%clk 0:02:22]}  f5 {[%clk 0:02:55]} 8. b4 {[%clk 0:02:23]}  e4 {[%clk 0:02:55]} 9. Nxe4 {[%clk 0:02:20]}  fxe4 {[%clk 0:02:55]} 10. dxe4 {[%clk 0:02:21]}  Qe7 {[%clk 0:02:48]} 11. Nh4 {[%clk 0:02:19]}  Qf7 {[%clk 0:02:46]} 12. f4 {[%clk 0:02:15]}  Nge7 {[%clk 0:02:41]} 13. O-O {[%clk 0:02:14]}  Qxc4 {[%clk 0:02:36]} 14. e3 {[%clk 0:02:08]}  Qxa2 {[%clk 0:02:22]} 15. Bb2 {[%clk 0:01:42]}  Bxb2 {[%clk 0:02:18]} 16. Qd2 {[%clk 0:01:42]}  a6 {[%clk 0:01:56]} 17. Rxb2 {[%clk 0:01:39]}  Qf7 {[%clk 0:01:55]} 18. Qc3 {[%clk 0:01:28]}  O-O {[%clk 0:01:51]} 19. e5 {[%clk 0:00:57]}  Be6 {[%clk 0:01:48]} 20. e4 {[%clk 0:00:54]}  dxe5 {[%clk 0:01:46]} 21. f5 {[%clk 0:00:46]}  Bc4 {[%clk 0:01:37]} 22. fxg6 {[%clk 0:00:43]}  Qe6 {[%clk 0:01:37]} 23. Rf5 {[%clk 0:00:25]}  b5 {[%clk 0:01:14]} 24. Rbf2 {[%clk 0:00:21]}  Nd4 {[%clk 0:01:12]} 25. Qe3 {[%clk 0:00:19]}  Nexf5 {[%clk 0:00:09]} 26. exf5 {[%clk 0:00:17]}  Qf6 {[%clk 0:00:09]} 27. Qxh6 {[%clk 0:00:15]}  Rfe8 {[%clk 0:00:04]} 28. Qh7+ {[%clk 0:00:13]}  Kf8 {[%clk 0:00:04]} 29. g7+ {[%clk 0:00:12]}  Qxg7 {[%clk 0:00:04]} 30. Ng6+ {[%clk 0:00:13]}  Kf7 {[%clk 0:00:05]} 31. Qh5 {[%clk 0:00:13]}  Kf6 {[%clk 0:00:00]} 32. g4 {[%clk 0:00:12]} 1-0


[Site "https://www.chess.com"]